[Event "2026 Biel Blitz Open"]
[Site "Biel, CH"]
[Date "2026.07.19"]
[Round "13"]
[White "Bu, Xiangzhi"]
[Black "Gloeckler, Christian"]
[Result "1-0"]
[Board "1"]
[TimeControl "180+2"]
[WhiteFideId "8601445"]
[BlackFideId "34608966"]
[WhiteElo "2719"]
[BlackElo "2513"]
[WhiteTitle "GM"]
[BlackTitle "IM"]
[WhiteClock "0:00:51"]
[BlackClock "0:00:01"]
[Variant "Standard"]
[EndDate "2026.07.19"]
[EndTime "16:20:16"]

1. Nf3 {[%clk 0:03:03]}  Nf6 {[%clk 0:03:03]} 2. c4 {[%clk 0:03:04]}  e6 {[%clk 0:03:05]} 3. Nc3 {[%clk 0:03:05]}  d5 {[%clk 0:03:06]}
4. d4 {[%clk 0:03:07]}  dxc4 {[%clk 0:03:06]} 5. e3 {[%clk 0:03:07]}  a6 {[%clk 0:03:08]} 6. a4 {[%clk 0:03:09]}  b6 {[%clk 0:02:57]}
7. Bxc4 {[%clk 0:03:09]}  Bb7 {[%clk 0:02:58]} 8. O-O {[%clk 0:03:09]}  Bb4 {[%clk 0:03:00]} 9. Qb3 {[%clk 0:03:06]}  Qe7 {[%clk 0:03:00]}
10. Bd2 {[%clk 0:03:00]}  O-O {[%clk 0:02:53]} 11. Rac1 {[%clk 0:02:58]}  c5 {[%clk 0:02:51]} 12. dxc5 {[%clk 0:02:42]}  Bxc5 {[%clk 0:02:51]}
13. Rfd1 {[%clk 0:02:38]}  Nc6 {[%clk 0:02:45]} 14. Be2 {[%clk 0:02:38]}  Rad8 {[%clk 0:02:44]} 15. Be1 {[%clk 0:02:38]}  Rxd1 {[%clk 0:02:42]}
16. Rxd1 {[%clk 0:02:39]}  Rd8 {[%clk 0:02:42]} 17. Rxd8+ {[%clk 0:02:39]}  Qxd8 {[%clk 0:02:37]} 18. h3 {[%clk 0:02:35]}  h6 {[%clk 0:02:37]}
19. Qd1 {[%clk 0:02:27]}  Qe7 {[%clk 0:02:38]} 20. Qc2 {[%clk 0:02:24]}  Nb4 {[%clk 0:02:36]} 21. Qb3 {[%clk 0:02:24]}  Nd7 {[%clk 0:02:26]}
22. Qc4 {[%clk 0:02:16]}  a5 {[%clk 0:02:03]} 23. Kf1 {[%clk 0:01:57]}  Nf6 {[%clk 0:01:42]} 24. Qf4 {[%clk 0:01:47]}  Bd6 {[%clk 0:01:33]}
25. Qh4 {[%clk 0:01:40]}  Nfd5 {[%clk 0:01:15]} 26. Qxe7 {[%clk 0:01:32]}  Nxe7 {[%clk 0:01:15]} 27. Nb5 {[%clk 0:01:24]}  Bc5 {[%clk 0:01:14]}
28. Ne5 {[%clk 0:01:23]}  Bc8 {[%clk 0:01:03]} 29. Na7 {[%clk 0:01:17]}  Ba6 {[%clk 0:00:33]} 30. Bxb4 {[%clk 0:01:08]}  Bxe2+ {[%clk 0:00:34]}
31. Kxe2 {[%clk 0:01:09]}  Bxb4 {[%clk 0:00:25]} 32. Nd7 {[%clk 0:01:01]}  Nd5 {[%clk 0:00:13]} 33. g3 {[%clk 0:00:57]}  f5 {[%clk 0:00:14]}
34. Nc8 {[%clk 0:00:55]}  Bc5 {[%clk 0:00:15]} 35. Nxc5 {[%clk 0:00:54]}  bxc5 {[%clk 0:00:16]} 36. Kd3 {[%clk 0:00:55]}  Nf6 {[%clk 0:00:05]}
37. Nd6 {[%clk 0:00:55]}  Kf8 {[%clk 0:00:03]} 38. f3 {[%clk 0:00:49]}  Nd7 {[%clk 0:00:03]} 39. Nb7 {[%clk 0:00:48]}  Ne5+ {[%clk 0:00:03]}
40. Ke2 {[%clk 0:00:48]}  Nd7 {[%clk 0:00:03]} 41. Nxa5 {[%clk 0:00:49]}  Ke7 {[%clk 0:00:04]} 42. Nc4 {[%clk 0:00:50]}  Kd8 {[%clk 0:00:05]}
43. Kd3 {[%clk 0:00:50]}  Kc7 {[%clk 0:00:06]} 44. e4 {[%clk 0:00:52]}  Kc6 {[%clk 0:00:06]} 45. f4 {[%clk 0:00:51]}  Nf6 {[%clk 0:00:06]}
46. exf5 {[%clk 0:00:51]}  exf5 {[%clk 0:00:07]} 47. Ne3 {[%clk 0:00:49]}  g6 {[%clk 0:00:08]} 48. g4 {[%clk 0:00:49]}  fxg4 {[%clk 0:00:05]}
49. Nxg4 {[%clk 0:00:49]}  Nh5 {[%clk 0:00:04]} 50. Ke3 {[%clk 0:00:46]}  Kb6 {[%clk 0:00:05]} 51. Nxh6 {[%clk 0:00:44]}  Ka5 {[%clk 0:00:06]}
52. Nf7 {[%clk 0:00:44]}  Ng7 {[%clk 0:00:04]} 53. Ne5 {[%clk 0:00:43]}  Nf5+ {[%clk 0:00:05]} 54. Kd3 {[%clk 0:00:43]}  Kxa4 {[%clk 0:00:04]}
55. Kc4 {[%clk 0:00:44]}  Nh4 {[%clk 0:00:03]} 56. Nd3 {[%clk 0:00:42]}  Ng2 {[%clk 0:00:04]} 57. Nxc5+ {[%clk 0:00:43]}  Ka5 {[%clk 0:00:06]}
58. Nd3 {[%clk 0:00:43]}  Ne3+ {[%clk 0:00:06]} 59. Kd4 {[%clk 0:00:43]}  Ng2 {[%clk 0:00:05]} 60. Ke5 {[%clk 0:00:44]}  Kb5 {[%clk 0:00:06]}
61. Kf6 {[%clk 0:00:44]}  Kc4 {[%clk 0:00:07]} 62. Ne5+ {[%clk 0:00:46]}  Kb3 {[%clk 0:00:06]} 63. Nxg6 {[%clk 0:00:47]}  Kxb2 {[%clk 0:00:06]}
64. h4 {[%clk 0:00:48]}  Kc3 {[%clk 0:00:06]} 65. h5 {[%clk 0:00:49]}  Kd4 {[%clk 0:00:05]} 66. h6 {[%clk 0:00:51]}  Kd5 {[%clk 0:00:01]} 1-0

[Event "2026 Biel Blitz Open"]
[Site "Biel, CH"]
[Date "2026.07.19"]
[Round "13"]
[White "Safarli, Eltaj"]
[Black "Savitha Shri B"]
[Result "1-0"]
[Board "3"]
[TimeControl "180+2"]
[WhiteFideId "13402129"]
[BlackFideId "35061887"]
[WhiteElo "2619"]
[BlackElo "2161"]
[WhiteTitle "GM"]
[BlackTitle "IM"]
[WhiteClock "0:00:22"]
[BlackClock "0:00:30"]
[Variant "Standard"]
[EndDate "2026.07.19"]
[EndTime "16:27:24"]

1. e4 {[%clk 0:03:03]}  c5 {[%clk 0:03:04]} 2. Nf3 {[%clk 0:03:03]}  e6 {[%clk 0:03:05]} 3. Nc3 {[%clk 0:03:04]}  Nc6 {[%clk 0:03:06]}
4. Bb5 {[%clk 0:03:05]}  Qc7 {[%clk 0:02:58]} 5. O-O {[%clk 0:02:58]}  Nf6 {[%clk 0:02:54]} 6. Re1 {[%clk 0:02:43]}  Ng4 {[%clk 0:02:47]}
7. Bxc6 {[%clk 0:02:36]}  bxc6 {[%clk 0:02:47]} 8. e5 {[%clk 0:02:35]}  f6 {[%clk 0:02:14]} 9. exf6 {[%clk 0:02:20]}  Nxf6 {[%clk 0:02:15]}
10. d4 {[%clk 0:02:08]}  cxd4 {[%clk 0:02:10]} 11. Qxd4 {[%clk 0:02:09]}  Be7 {[%clk 0:02:04]} 12. Bf4 {[%clk 0:02:07]}  Qb6 {[%clk 0:02:05]}
13. Qd2 {[%clk 0:01:55]}  O-O {[%clk 0:02:05]} 14. b3 {[%clk 0:01:46]}  Nd5 {[%clk 0:01:33]} 15. Be5 {[%clk 0:01:24]}  d6 {[%clk 0:01:15]}
16. Bg3 {[%clk 0:01:19]}  Nxc3 {[%clk 0:01:13]} 17. Qxc3 {[%clk 0:01:20]}  e5 {[%clk 0:01:15]} 18. Rad1 {[%clk 0:01:13]}  Be6 {[%clk 0:01:16]}
19. Nd2 {[%clk 0:00:46]}  Bd5 {[%clk 0:01:09]} 20. Nc4 {[%clk 0:00:42]}  Qc5 {[%clk 0:01:07]} 21. Qe3 {[%clk 0:00:32]}  Qxe3 {[%clk 0:00:54]}
22. Nxe3 {[%clk 0:00:33]}  Be6 {[%clk 0:00:55]} 23. c4 {[%clk 0:00:35]}  a5 {[%clk 0:00:41]} 24. c5 {[%clk 0:00:31]}  d5 {[%clk 0:00:42]}
25. Bxe5 {[%clk 0:00:28]}  Bxc5 {[%clk 0:00:44]} 26. Rc1 {[%clk 0:00:27]}  Bb4 {[%clk 0:00:43]} 27. Red1 {[%clk 0:00:24]}  Rfc8 {[%clk 0:00:45]}
28. Nc2 {[%clk 0:00:15]}  Be7 {[%clk 0:00:35]} 29. Nd4 {[%clk 0:00:21]}  c5 {[%clk 0:00:35]} 30. Nxe6 {[%clk 0:00:18]}  Ra6 {[%clk 0:00:30]}
31. Nc7 {[%clk 0:00:22]} 1-0

[Event "2026 Biel Blitz Open"]
[Site "Biel, CH"]
[Date "2026.07.19"]
[Round "13"]
[White "Aronyak Ghosh"]
[Black "Kozak, Adam"]
[Result "1/2-1/2"]
[Board "4"]
[TimeControl "180+2"]
[WhiteFideId "25072846"]
[BlackFideId "753246"]
[WhiteElo "2488"]
[BlackElo "2537"]
[WhiteTitle "IM"]
[BlackTitle "GM"]
[WhiteClock "0:00:13"]
[BlackClock "0:00:07"]
[Variant "Standard"]
[EndDate "2026.07.19"]
[EndTime "16:20:02"]

1. d4 {[%clk 0:03:03]}  Nf6 {[%clk 0:03:04]} 2. Bf4 {[%clk 0:03:01]}  b6 {[%clk 0:03:05]} 3. e3 {[%clk 0:03:00]}  Bb7 {[%clk 0:03:06]}
4. c4 {[%clk 0:02:56]}  g6 {[%clk 0:03:05]} 5. Nc3 {[%clk 0:02:52]}  d6 {[%clk 0:03:05]} 6. h3 {[%clk 0:02:48]}  Bg7 {[%clk 0:03:06]}
7. Nf3 {[%clk 0:02:45]}  Nbd7 {[%clk 0:03:06]} 8. Be2 {[%clk 0:02:48]}  e5 {[%clk 0:03:06]} 9. Bh2 {[%clk 0:02:34]}  Ne4 {[%clk 0:03:00]}
10. Nxe4 {[%clk 0:02:30]}  Bxe4 {[%clk 0:03:01]} 11. O-O {[%clk 0:02:29]}  O-O {[%clk 0:02:58]} 12. Nd2 {[%clk 0:02:24]}  Bb7 {[%clk 0:02:56]}
13. Bf3 {[%clk 0:02:24]}  Qc8 {[%clk 0:02:47]} 14. Bxb7 {[%clk 0:02:12]}  Qxb7 {[%clk 0:02:47]} 15. Qf3 {[%clk 0:02:08]}  Qxf3 {[%clk 0:02:44]}
16. Nxf3 {[%clk 0:02:08]}  Rfe8 {[%clk 0:02:45]} 17. Rfd1 {[%clk 0:02:05]}  exd4 {[%clk 0:02:40]} 18. Nxd4 {[%clk 0:02:03]}  a6 {[%clk 0:02:41]}
19. Rac1 {[%clk 0:02:02]}  Re4 {[%clk 0:02:38]} 20. b3 {[%clk 0:01:47]}  f5 {[%clk 0:02:39]} 21. Ne2 {[%clk 0:01:43]}  Kf7 {[%clk 0:02:39]}
22. Nf4 {[%clk 0:01:42]}  Rc8 {[%clk 0:02:28]} 23. Nd5 {[%clk 0:01:42]}  Nf6 {[%clk 0:01:22]} 24. Kf1 {[%clk 0:01:34]}  Nd7 {[%clk 0:01:13]}
25. Rc2 {[%clk 0:01:33]}  Ree8 {[%clk 0:01:10]} 26. g4 {[%clk 0:01:22]}  Nf6 {[%clk 0:00:53]} 27. gxf5 {[%clk 0:01:19]}  gxf5 {[%clk 0:00:54]}
28. Nxf6 {[%clk 0:01:17]}  Bxf6 {[%clk 0:00:54]} 29. Rd5 {[%clk 0:01:17]}  Ke6 {[%clk 0:00:53]} 30. Ke2 {[%clk 0:01:15]}  Rg8 {[%clk 0:00:51]}
31. Kf3 {[%clk 0:01:13]}  Rg6 {[%clk 0:00:45]} 32. Bg3 {[%clk 0:00:52]}  Rh6 {[%clk 0:00:46]} 33. Kg2 {[%clk 0:00:51]}  Rg8 {[%clk 0:00:47]}
34. Kh2 {[%clk 0:00:35]}  Rh5 {[%clk 0:00:45]} 35. e4 {[%clk 0:00:29]}  Kf7 {[%clk 0:00:11]} 36. Re2 {[%clk 0:00:23]}  Re8 {[%clk 0:00:10]}
37. Kg2 {[%clk 0:00:20]}  Rg5 {[%clk 0:00:08]} 38. h4 {[%clk 0:00:15]}  Rg4 {[%clk 0:00:05]} 39. f3 {[%clk 0:00:11]}  Rg6 {[%clk 0:00:06]}
40. Kh3 {[%clk 0:00:06]}  fxe4 {[%clk 0:00:07]} 41. Rxe4 {[%clk 0:00:07]}  Rxe4 {[%clk 0:00:07]} 42. fxe4 {[%clk 0:00:09]}  Ke6 {[%clk 0:00:03]}
43. Rh5 {[%clk 0:00:10]}  h6 {[%clk 0:00:04]} 44. Rf5 {[%clk 0:00:10]}  Rg8 {[%clk 0:00:04]} 45. Bf4 {[%clk 0:00:09]}  Bg7 {[%clk 0:00:04]}
46. Kg4 {[%clk 0:00:09]}  Be5+ {[%clk 0:00:03]} 47. Kf3 {[%clk 0:00:10]}  Bxf4 {[%clk 0:00:04]} 48. Kxf4 {[%clk 0:00:11]}  Rg2 {[%clk 0:00:05]}
49. Rh5 {[%clk 0:00:11]}  Rf2+ {[%clk 0:00:04]} 50. Ke3 {[%clk 0:00:12]}  Rxa2 {[%clk 0:00:04]} 51. Rxh6+ {[%clk 0:00:13]}  Ke5 {[%clk 0:00:04]}
52. Rh5+ {[%clk 0:00:13]}  Ke6 {[%clk 0:00:06]} 53. Rh6+ {[%clk 0:00:15]}  Ke5 {[%clk 0:00:07]} 54. Rh5+ {[%clk 0:00:13]} 1/2-1/2

[Event "2026 Biel Blitz Open"]
[Site "Biel, CH"]
[Date "2026.07.19"]
[Round "13"]
[White "Rappazzo, Johannes"]
[Black "Shukhman, Anna"]
[Result "1-0"]
[Board "5"]
[TimeControl "180+2"]
[WhiteFideId "1340069"]
[BlackFideId "54180058"]
[WhiteElo "2032"]
[BlackElo "2392"]
[WhiteTitle "FM"]
[BlackTitle "WGM"]
[WhiteClock "0:00:14"]
[BlackClock "0:00:08"]
[Variant "Standard"]
[EndDate "2026.07.19"]
[EndTime "16:18:53"]

1. e4 {[%clk 0:03:04]}  c5 {[%clk 0:03:03]} 2. Nf3 {[%clk 0:03:05]}  d6 {[%clk 0:03:05]} 3. d4 {[%clk 0:03:06]}  cxd4 {[%clk 0:03:06]}
4. Nxd4 {[%clk 0:03:08]}  Nf6 {[%clk 0:03:07]} 5. Nc3 {[%clk 0:03:09]}  g6 {[%clk 0:03:07]} 6. Be3 {[%clk 0:03:10]}  Nc6 {[%clk 0:03:08]}
7. f3 {[%clk 0:03:08]}  h5 {[%clk 0:03:10]} 8. Bc4 {[%clk 0:03:09]}  Bd7 {[%clk 0:03:10]} 9. Bb3 {[%clk 0:03:09]}  Bg7 {[%clk 0:03:10]}
10. O-O {[%clk 0:03:09]}  h4 {[%clk 0:03:01]} 11. h3 {[%clk 0:03:09]}  Qa5 {[%clk 0:02:51]} 12. f4 {[%clk 0:03:07]}  Rc8 {[%clk 0:02:37]}
13. Qf3 {[%clk 0:02:57]}  Qh5 {[%clk 0:02:25]} 14. Qf2 {[%clk 0:02:32]}  a6 {[%clk 0:02:08]} 15. Rae1 {[%clk 0:02:15]}  O-O {[%clk 0:01:49]}
16. Nf3 {[%clk 0:01:50]}  b5 {[%clk 0:01:50]} 17. Ng5 {[%clk 0:01:50]}  Nh7 {[%clk 0:01:05]} 18. Nxh7 {[%clk 0:01:12]}  Kxh7 {[%clk 0:01:05]}
19. Nd5 {[%clk 0:01:04]}  Na5 {[%clk 0:00:56]} 20. Bd4 {[%clk 0:00:49]}  Nxb3 {[%clk 0:00:53]} 21. cxb3 {[%clk 0:00:47]}  Rce8 {[%clk 0:00:22]}
22. Bxg7 {[%clk 0:00:47]}  Kxg7 {[%clk 0:00:23]} 23. Qa7 {[%clk 0:00:40]}  Be6 {[%clk 0:00:21]} 24. Qd4+ {[%clk 0:00:34]}  f6 {[%clk 0:00:22]}
25. Nc7 {[%clk 0:00:34]}  Kf7 {[%clk 0:00:20]} 26. Nxe8 {[%clk 0:00:27]}  Rxe8 {[%clk 0:00:21]} 27. f5 {[%clk 0:00:26]}  Bd7 {[%clk 0:00:18]}
28. Qd5+ {[%clk 0:00:24]}  Kg7 {[%clk 0:00:18]} 29. fxg6 {[%clk 0:00:22]}  Qxg6 {[%clk 0:00:18]} 30. Kh1 {[%clk 0:00:20]}  Rc8 {[%clk 0:00:18]}
31. Rc1 {[%clk 0:00:20]}  Rxc1 {[%clk 0:00:11]} 32. Rxc1 {[%clk 0:00:20]}  Qg3 {[%clk 0:00:12]} 33. Rc3 {[%clk 0:00:14]}  Qe1+ {[%clk 0:00:12]}
34. Kh2 {[%clk 0:00:15]}  Qf2 {[%clk 0:00:11]} 35. Rf3 {[%clk 0:00:14]}  Qe2 {[%clk 0:00:11]} 36. Qb7 {[%clk 0:00:13]}  Qxe4 {[%clk 0:00:08]}
37. Qxe4 {[%clk 0:00:14]} 1-0

[Event "2026 Biel Blitz Open"]
[Site "Biel, CH"]
[Date "2026.07.19"]
[Round "13"]
[White "Dong, Hongfu"]
[Black "Ling, Chenxuan"]
[Result "1/2-1/2"]
[Board "6"]
[TimeControl "180+2"]
[WhiteFideId "8626960"]
[BlackFideId "30983118"]
[WhiteElo "2290"]
[BlackElo "2235"]
[BlackTitle "CM"]
[WhiteClock "0:00:08"]
[BlackClock "0:01:00"]
[Variant "Standard"]
[EndDate "2026.07.19"]
[EndTime "16:18:42"]

1. e4 {[%clk 0:03:03]}  e6 {[%clk 0:03:03]} 2. d4 {[%clk 0:03:04]}  d5 {[%clk 0:03:04]} 3. Nc3 {[%clk 0:03:04]}  Bb4 {[%clk 0:03:04]}
4. exd5 {[%clk 0:02:53]}  exd5 {[%clk 0:03:05]} 5. Bd3 {[%clk 0:02:54]}  Nf6 {[%clk 0:03:06]} 6. h3 {[%clk 0:02:55]}  O-O {[%clk 0:03:05]}
7. Qf3 {[%clk 0:02:56]}  Ne4 {[%clk 0:02:57]} 8. Nge2 {[%clk 0:02:55]}  Nc6 {[%clk 0:02:47]} 9. Be3 {[%clk 0:02:15]}  Nxc3 {[%clk 0:02:45]}
10. bxc3 {[%clk 0:02:15]}  Be7 {[%clk 0:02:46]} 11. Nf4 {[%clk 0:02:09]}  Be6 {[%clk 0:02:34]} 12. h4 {[%clk 0:02:01]}  Qd7 {[%clk 0:02:31]}
13. h5 {[%clk 0:02:00]}  h6 {[%clk 0:02:19]} 14. Nxe6 {[%clk 0:01:35]}  fxe6 {[%clk 0:02:00]} 15. Qg4 {[%clk 0:01:32]}  Rf6 {[%clk 0:02:00]}
16. Rh3 {[%clk 0:01:32]}  Bd6 {[%clk 0:01:57]} 17. Rf3 {[%clk 0:01:29]}  Raf8 {[%clk 0:01:55]} 18. Rxf6 {[%clk 0:01:06]}  Rxf6 {[%clk 0:01:56]}
19. c4 {[%clk 0:01:00]}  Nb4 {[%clk 0:01:40]} 20. cxd5 {[%clk 0:00:30]}  Nxd3+ {[%clk 0:01:34]} 21. cxd3 {[%clk 0:00:31]}  Bb4+ {[%clk 0:01:35]}
22. Kf1 {[%clk 0:00:25]}  Qxd5 {[%clk 0:01:36]} 23. Kg1 {[%clk 0:00:13]}  Bd6 {[%clk 0:01:32]} 24. a4 {[%clk 0:00:08]}  a6 {[%clk 0:01:23]}
25. Rb1 {[%clk 0:00:05]}  b6 {[%clk 0:01:21]} 26. Rc1 {[%clk 0:00:04]}  Qf5 {[%clk 0:01:20]} 27. Qxf5 {[%clk 0:00:03]}  Rxf5 {[%clk 0:01:20]}
28. g4 {[%clk 0:00:04]}  Rd5 {[%clk 0:01:20]} 29. Kg2 {[%clk 0:00:05]}  Kf7 {[%clk 0:01:19]} 30. Kf3 {[%clk 0:00:06]}  Ra5 {[%clk 0:01:16]}
31. Rc4 {[%clk 0:00:08]}  Rd5 {[%clk 0:01:11]} 32. Ke4 {[%clk 0:00:09]}  Ke7 {[%clk 0:01:02]} 33. f4 {[%clk 0:00:10]}  b5 {[%clk 0:01:00]}
34. axb5 {[%clk 0:00:11]}  Rxb5 {[%clk 0:01:01]} 35. Ra4 {[%clk 0:00:12]}  a5 {[%clk 0:01:02]} 36. Bd2 {[%clk 0:00:13]}  Bb4 {[%clk 0:01:04]}
37. Be3 {[%clk 0:00:13]}  Bd6 {[%clk 0:01:00]} 38. g5 {[%clk 0:00:07]}  Kd7 {[%clk 0:01:01]} 39. Bd2 {[%clk 0:00:07]}  Bb4 {[%clk 0:01:01]}
40. Be3 {[%clk 0:00:08]}  Be7 {[%clk 0:01:02]} 41. Bd2 {[%clk 0:00:06]}  hxg5 {[%clk 0:01:00]} 42. fxg5 {[%clk 0:00:08]}  Bxg5 {[%clk 0:01:00]}
43. Rxa5 {[%clk 0:00:09]}  Rxa5 {[%clk 0:01:00]} 44. Bxa5 {[%clk 0:00:10]}  Bf6 {[%clk 0:01:01]} 45. Bb4 {[%clk 0:00:08]}  c6 {[%clk 0:01:00]} 1/2-1/2

[Event "2026 Biel Blitz Open"]
[Site "Biel, CH"]
[Date "2026.07.19"]
[Round "13"]
[White "Cao, Qingfeng"]
[Black "Ashwath Kaushik"]
[Result "1-0"]
[Board "7"]
[TimeControl "180+2"]
[WhiteFideId "8627568"]
[BlackFideId "33387230"]
[WhiteElo "2264"]
[BlackElo "2122"]
[WhiteTitle "IM"]
[BlackTitle "FM"]
[WhiteClock "0:00:30"]
[BlackClock "0:00:18"]
[Variant "Standard"]
[EndDate "2026.07.19"]
[EndTime "16:20:43"]

1. d4 {[%clk 0:03:04]}  d5 {[%clk 0:03:02]} 2. c4 {[%clk 0:03:04]}  e6 {[%clk 0:03:04]} 3. Nf3 {[%clk 0:03:05]}  Nf6 {[%clk 0:03:05]}
4. g3 {[%clk 0:03:06]}  Be7 {[%clk 0:03:06]} 5. Bg2 {[%clk 0:03:07]}  O-O {[%clk 0:03:07]} 6. Nc3 {[%clk 0:03:07]}  a5 {[%clk 0:03:07]}
7. O-O {[%clk 0:02:59]}  dxc4 {[%clk 0:03:08]} 8. Ne5 {[%clk 0:02:53]}  Nc6 {[%clk 0:03:09]} 9. Bxc6 {[%clk 0:02:53]}  bxc6 {[%clk 0:03:10]}
10. Nxc6 {[%clk 0:02:54]}  Qe8 {[%clk 0:03:11]} 11. Nxe7+ {[%clk 0:02:54]}  Qxe7 {[%clk 0:03:12]} 12. Qa4 {[%clk 0:02:50]}  Nd5 {[%clk 0:02:47]}
13. Qc6 {[%clk 0:02:23]}  Rb8 {[%clk 0:02:24]} 14. Qxc4 {[%clk 0:02:19]}  Bb7 {[%clk 0:02:19]} 15. f3 {[%clk 0:02:13]}  Rfc8 {[%clk 0:02:17]}
16. e4 {[%clk 0:02:05]}  Nxc3 {[%clk 0:02:15]} 17. bxc3 {[%clk 0:02:06]}  e5 {[%clk 0:01:54]} 18. Be3 {[%clk 0:02:04]}  exd4 {[%clk 0:01:51]}
19. cxd4 {[%clk 0:02:05]}  Qf6 {[%clk 0:01:48]} 20. Qc5 {[%clk 0:01:50]}  Ba6 {[%clk 0:01:46]} 21. Rf2 {[%clk 0:01:51]}  Rb5 {[%clk 0:01:43]}
22. Qc3 {[%clk 0:01:43]}  c5 {[%clk 0:01:42]} 23. Rc1 {[%clk 0:01:43]}  c4 {[%clk 0:01:15]} 24. Kg2 {[%clk 0:01:43]}  Rb4 {[%clk 0:01:13]}
25. Bd2 {[%clk 0:01:36]}  Ra4 {[%clk 0:01:08]} 26. Be3 {[%clk 0:01:22]}  Qd6 {[%clk 0:01:02]} 27. d5 {[%clk 0:01:19]}  Ra3 {[%clk 0:01:01]}
28. Qd4 {[%clk 0:01:19]}  Rd3 {[%clk 0:01:00]} 29. Qb6 {[%clk 0:01:14]}  Qxb6 {[%clk 0:00:50]} 30. Bxb6 {[%clk 0:01:15]}  a4 {[%clk 0:00:50]}
31. Ba5 {[%clk 0:01:13]}  Rc5 {[%clk 0:00:46]} 32. Bb4 {[%clk 0:01:12]}  Rc8 {[%clk 0:00:42]} 33. Rd2 {[%clk 0:01:10]}  Rb8 {[%clk 0:00:28]}
34. Rxd3 {[%clk 0:01:08]}  cxd3 {[%clk 0:00:29]} 35. a3 {[%clk 0:01:10]}  f5 {[%clk 0:00:28]} 36. Kf2 {[%clk 0:01:10]}  fxe4 {[%clk 0:00:28]}
37. fxe4 {[%clk 0:01:11]}  d2 {[%clk 0:00:11]} 38. Rd1 {[%clk 0:01:05]}  Re8 {[%clk 0:00:09]} 39. Ke3 {[%clk 0:01:03]}  Bc4 {[%clk 0:00:03]}
40. Kd4 {[%clk 0:01:02]}  Bb3 {[%clk 0:00:06]} 41. Rxd2 {[%clk 0:01:04]}  Kf7 {[%clk 0:00:05]} 42. Rf2+ {[%clk 0:01:04]}  Kg6 {[%clk 0:00:09]}
43. e5 {[%clk 0:01:05]}  Rd8 {[%clk 0:00:09]} 44. d6 {[%clk 0:01:06]}  Be6 {[%clk 0:00:11]} 45. Rc2 {[%clk 0:01:04]}  Rc8 {[%clk 0:00:12]}
46. Rc7 {[%clk 0:00:37]}  Rxc7 {[%clk 0:00:09]} 47. dxc7 {[%clk 0:00:38]}  Bc8 {[%clk 0:00:07]} 48. Kd5 {[%clk 0:00:38]}  Kf7 {[%clk 0:00:08]}
49. Kd6 {[%clk 0:00:37]}  Ke8 {[%clk 0:00:07]} 50. e6 {[%clk 0:00:36]}  g6 {[%clk 0:00:07]} 51. Bd2 {[%clk 0:00:35]}  Bb7 {[%clk 0:00:07]}
52. Bg5 {[%clk 0:00:35]}  Bc8 {[%clk 0:00:08]} 53. Ke5 {[%clk 0:00:33]}  Bb7 {[%clk 0:00:04]} 54. Kf6 {[%clk 0:00:34]}  Bc8 {[%clk 0:00:03]}
55. h4 {[%clk 0:00:29]}  Kf8 {[%clk 0:00:05]} 56. Bf4 {[%clk 0:00:30]}  Ke8 {[%clk 0:00:05]} 57. Bd6 {[%clk 0:00:31]}  Bb7 {[%clk 0:00:03]}
58. Kg7 {[%clk 0:00:31]}  Bc8 {[%clk 0:00:05]} 59. Kxh7 {[%clk 0:00:31]}  Bxe6 {[%clk 0:00:06]} 60. Kxg6 {[%clk 0:00:32]}  Kd7 {[%clk 0:00:04]}
61. Be5 {[%clk 0:00:31]}  Ke7 {[%clk 0:00:09]} 62. h5 {[%clk 0:00:30]}  Bf7+ {[%clk 0:00:11]} 63. Kg5 {[%clk 0:00:30]}  Be6 {[%clk 0:00:11]}
64. g4 {[%clk 0:00:31]}  Kf7 {[%clk 0:00:13]} 65. Kf4 {[%clk 0:00:30]}  Kg8 {[%clk 0:00:14]} 66. g5 {[%clk 0:00:32]}  Kh7 {[%clk 0:00:16]}
67. Bf6 {[%clk 0:00:29]}  Kg8 {[%clk 0:00:16]} 68. g6 {[%clk 0:00:29]}  Bc8 {[%clk 0:00:17]} 69. h6 {[%clk 0:00:29]}  Kf8 {[%clk 0:00:18]}
70. h7 {[%clk 0:00:30]} 1-0

[Event "2026 Biel Blitz Open"]
[Site "Biel, CH"]
[Date "2026.07.19"]
[Round "13"]
[White "Amonatov, Farrukh"]
[Black "Kukushkin, Ivan"]
[Result "1-0"]
[Board "8"]
[TimeControl "180+2"]
[WhiteFideId "14700077"]
[BlackFideId "11634103"]
[WhiteElo "2585"]
[BlackElo "2265"]
[WhiteTitle "GM"]
[BlackTitle "FM"]
[WhiteClock "0:00:12"]
[BlackClock "0:00:16"]
[Variant "Standard"]
[EndDate "2026.07.19"]
[EndTime "16:20:09"]

1. e4 {[%clk 0:03:03]}  c5 {[%clk 0:03:03]} 2. Nf3 {[%clk 0:03:03]}  Nc6 {[%clk 0:03:04]} 3. d4 {[%clk 0:03:03]}  cxd4 {[%clk 0:03:05]}
4. Nxd4 {[%clk 0:03:03]}  Nf6 {[%clk 0:03:07]} 5. Nc3 {[%clk 0:03:03]}  e6 {[%clk 0:03:08]} 6. Ndb5 {[%clk 0:03:04]}  Bb4 {[%clk 0:03:09]}
7. a3 {[%clk 0:03:04]}  Bxc3+ {[%clk 0:03:10]} 8. Nxc3 {[%clk 0:03:05]}  d5 {[%clk 0:03:11]} 9. exd5 {[%clk 0:03:04]}  exd5 {[%clk 0:03:12]}
10. Bd3 {[%clk 0:03:04]}  O-O {[%clk 0:03:11]} 11. O-O {[%clk 0:03:04]}  d4 {[%clk 0:03:12]} 12. Ne2 {[%clk 0:03:02]}  Bg4 {[%clk 0:03:13]}
13. Bg5 {[%clk 0:02:37]}  Re8 {[%clk 0:03:05]} 14. f3 {[%clk 0:02:37]}  Bh5 {[%clk 0:03:06]} 15. Nf4 {[%clk 0:02:38]}  Bg6 {[%clk 0:03:06]}
16. Nxg6 {[%clk 0:02:38]}  hxg6 {[%clk 0:03:07]} 17. f4 {[%clk 0:02:39]}  Qd6 {[%clk 0:03:02]} 18. f5 {[%clk 0:02:38]}  gxf5 {[%clk 0:02:55]}
19. Rxf5 {[%clk 0:02:38]}  Ne4 {[%clk 0:02:34]} 20. Qg4 {[%clk 0:02:25]}  Nxg5 {[%clk 0:02:18]} 21. Rxg5 {[%clk 0:02:25]}  Qh6 {[%clk 0:02:12]}
22. Rf1 {[%clk 0:02:03]}  Ne5 {[%clk 0:02:10]} 23. Qf5 {[%clk 0:01:29]}  f6 {[%clk 0:00:56]} 24. Rh5 {[%clk 0:00:44]}  Qe3+ {[%clk 0:00:56]}
25. Kh1 {[%clk 0:00:46]}  Rad8 {[%clk 0:00:30]} 26. Rh3 {[%clk 0:00:27]}  Qd2 {[%clk 0:00:22]} 27. Qh7+ {[%clk 0:00:17]}  Kf7 {[%clk 0:00:17]}
28. Rg3 {[%clk 0:00:13]}  Rg8 {[%clk 0:00:16]} 29. Qh5+ {[%clk 0:00:18]}  Ke7 {[%clk 0:00:17]} 30. Bh7 {[%clk 0:00:15]}  Rgf8 {[%clk 0:00:15]}
31. Rxg7+ {[%clk 0:00:15]}  Kd6 {[%clk 0:00:17]} 32. Rxb7 {[%clk 0:00:11]}  Qg5 {[%clk 0:00:14]} 33. Qe2 {[%clk 0:00:11]}  Rc8 {[%clk 0:00:14]}
34. Qa6+ {[%clk 0:00:10]}  Rc6 {[%clk 0:00:15]} 35. Qa5 {[%clk 0:00:10]}  Rh8 {[%clk 0:00:13]} 36. Qb4+ {[%clk 0:00:10]}  Ke6 {[%clk 0:00:13]}
37. Bf5+ {[%clk 0:00:10]}  Qxf5 {[%clk 0:00:14]} 38. Re7+ {[%clk 0:00:10]}  Kd5 {[%clk 0:00:15]} 39. Rxf5 {[%clk 0:00:11]}  Rxc2 {[%clk 0:00:16]}
40. Qb3+ {[%clk 0:00:12]} 1-0